bitfinex-derivatives/quotes_BTCF0:USTF0_20260131
["timestamp","ask_amount","ask_price","bid_price","bid_amount"]
[1769841361791,0.07887114,83765.0,83755.0,0.17943478]
[1769841361992,0.07887114,83765.0,83763.0,0.001]
[1769841362293,0.07887114,83765.0,83755.0,0.17943478]
[1769841364594,0.07887114,83765.0,83757.0,0.001]
[1769841365094,0.07887114,83765.0,83757.0,0.18043478]
[1769841365294,0.07887114,83765.0,83757.0,0.17943478]
[1769841366199,0.07887114,83765.0,83757.0,0.18043478]
[1769841367995,0.07887114,83765.0,83757.0,0.001]
[1769841369196,0.07887114,83765.0,83757.0,0.18043478]
[1769841369498,0.07887114,83765.0,83757.0,0.001]
[1769841370392,0.07887114,83765.0,83748.0,0.23849316]
[1769841370597,0.07887114,83765.0,83748.0,0.01196]
[1769841371498,0.07887114,83765.0,83748.0,0.01296]
[1769841373995,0.07887114,83765.0,83748.0,0.01196]
[1769841377201,0.07887114,83765.0,83746.0,0.01196]
[1769841379101,0.07887114,83765.0,83746.0,0.01296]
[1769841379502,0.07887114,83765.0,83748.0,0.01196]
[1769841379699,0.07719592,83763.0,83748.0,0.01196]
[1769841380903,0.07719592,83763.0,83748.0,0.01296]
[1769841381504,0.07719592,83763.0,83748.0,0.01196]
[1769841381704,0.07719592,83763.0,83748.0,0.01296]
[1769841384198,0.07719592,83763.0,83748.0,0.01196]
[1769841384403,0.07719592,83763.0,83748.0,0.01296]
[1769841386506,0.07719592,83763.0,83750.0,0.011959]
[1769841387807,0.07719592,83763.0,83750.0,0.012959]
[1769841388305,0.07719592,83763.0,83750.0,0.011959]
[1769841388604,0.07719592,83763.0,83750.0,0.012959]
[1769841390706,0.07719592,83763.0,83750.0,0.001]
[1769841391001,0.18479592,83774.0,83756.0,0.011959]
[1769841391202,0.18479592,83773.0,83756.0,0.011959]
[1769841391409,0.07719592,83772.0,83756.0,0.011959]
[1769841391602,0.07719592,83772.0,83756.0,0.09196969]
[1769841391804,0.1076,83773.0,83761.0,0.011958]
[1769841393608,0.1076,83773.0,83761.0,0.012958]
[1769841394804,0.1066,83773.0,83766.0,0.011957]
[1769841395198,0.10593496,83773.0,83766.0,0.011957]
[1769841396701,0.10593496,83773.0,83766.0,0.10208475]
[1769841396910,0.4224,83783.0,83766.0,0.10208475]
[1769841397099,0.51377283,83783.0,83766.0,0.10308475]
[1769841397405,0.09137283,83782.0,83766.0,0.10308475]
[1769841398811,0.09137283,83782.0,83766.0,0.012957]
[1769841399509,0.09137283,83782.0,83766.0,0.011957]
[1769841406112,0.10756,83783.0,83769.0,0.08919023]
[1769841407117,0.10756,83783.0,83770.0,0.10114723]
[1769841407510,0.08931929,83791.0,83770.0,0.10114723]
[1769841407707,0.08931929,83791.0,83775.0,0.08919023]
[1769841407920,0.10756,83793.0,83779.0,0.10114523]
[1769841408220,0.10756,83793.0,83781.0,0.08919023]
[1769841408423,0.10756,83793.0,83781.0,0.10114523]
[1769841409019,0.10756,83793.0,83781.0,0.08919023]
[1769841409215,0.10756,83793.0,83778.0,0.011955]
[1769841409812,0.10756,83793.0,83781.0,0.001]
[1769841410418,0.19687929,83793.0,83778.0,0.012955]
[1769841410817,0.19687929,83793.0,83778.0,0.10214523]
[1769841410818,0.10756,83793.0,83778.0,0.10214523]
[1769841411821,0.10756,83793.0,83780.0,0.011955]
[1769841412611,0.10756,83793.0,83781.0,0.001]
[1769841413119,0.19687929,83793.0,83780.0,0.011955]
[1769841413318,0.19687929,83793.0,83780.0,0.012955]
[1769841414923,0.19687929,83793.0,83781.0,0.001]
[1769841415121,0.08931929,83792.0,83781.0,0.001]
[1769841415623,0.08931929,83792.0,83774.0,0.011956]
[1769841415813,0.08931929,83792.0,83780.0,0.001]
[1769841416413,0.08931929,83792.0,83776.0,0.10756]
[1769841416616,0.08931929,83792.0,83776.0,0.119516]
[1769841417527,0.08931929,83792.0,83779.0,0.011955]
[1769841418429,0.08931929,83792.0,83782.0,0.011955]
[1769841420032,0.08931929,83792.0,83779.0,0.011955]
[1769841420231,0.08931929,83792.0,83782.0,0.011955]
[1769841420924,0.08931929,83792.0,83779.0,0.011955]
[1769841422131,0.39611216,83813.0,83785.0,0.011954]
[1769841422132,0.08931929,83797.0,83785.0,0.011954]
[1769841423731,0.10756,83807.0,83791.0,0.011954]
[1769841423732,0.08931929,83806.0,83791.0,0.011954]
[1769841428428,0.08931929,83806.0,83793.0,0.011953]
[1769841431935,0.08931929,83806.0,83796.0,0.011953]
[1769841432136,0.08931929,83806.0,83785.0,0.10132836]
[1769841432137,0.08931929,83806.0,83798.0,0.011953]
[1769841434635,0.08931929,83806.0,83798.0,0.001]
[1769841435439,0.08931929,83806.0,83793.0,0.011953]
[1769841435639,0.08931929,83806.0,83798.0,0.001]
[1769841437242,0.08931929,83806.0,83793.0,0.011953]
[1769841438042,0.08931929,83806.0,83798.0,0.001]
[1769841439739,0.08931929,83806.0,83793.0,0.011953]
[1769841440041,0.08931929,83806.0,83793.0,0.012953]
[1769841440243,0.08931929,83806.0,83795.0,0.011953]
[1769841440640,0.08931929,83806.0,83798.0,0.001]
[1769841441438,0.08931929,83806.0,83795.0,0.011953]
[1769841444144,0.08931929,83806.0,83795.0,0.012953]
[1769841446440,0.08931929,83806.0,83797.0,0.011953]
[1769841449144,0.08931929,83806.0,83797.0,0.012953]
[1769841450342,0.08931929,83806.0,83799.0,0.011952]
[1769841452147,0.08931929,83806.0,83799.0,0.012952]
[1769841455151,0.08931929,83806.0,83799.0,0.011952]
[1769841455352,0.08931929,83806.0,83799.0,0.012952]
[1769841456756,0.08931929,83806.0,83799.0,0.011952]
[1769841456957,0.08931929,83806.0,83799.0,0.012952]
[1769841458454,0.08931929,83806.0,83799.0,0.011952]
[1769841458956,0.08931929,83806.0,83796.0,0.011953]
[1769841461159,0.08931929,83806.0,83796.0,0.012953]
[1769841462060,0.08931929,83806.0,83796.0,0.011953]
[1769841467362,0.08931929,83806.0,83796.0,0.012953]
[1769841471756,0.08931929,83806.0,83796.0,0.011953]
[1769841472562,0.08931929,83806.0,83791.0,0.13641628]
[1769841472766,0.08931929,83806.0,83785.0,0.011954]
[1769841473465,0.08931929,83806.0,83781.0,0.011955]
[1769841474567,0.05993181,83799.0,83781.0,0.011955]
[1769841474962,0.05993181,83797.0,83781.0,0.011955]
[1769841478858,0.05993181,83797.0,83777.0,0.10752]
[1769841481666,0.05993181,83797.0,83770.0,0.20235406]
[1769841481667,0.07063348,83789.0,83767.0,0.011957]
[1769841481978,0.07063348,83787.0,83766.0,9.039e-05]
[1769841482177,0.07063348,83785.0,83766.0,9.039e-05]
[1769841485075,0.06900504,83779.0,83755.0,0.011959]
[1769841485379,0.06900504,83779.0,83750.0,0.23860339]
[1769841485380,0.06900504,83777.0,83754.0,0.10756]
[1769841485572,0.06822035,83775.0,83754.0,0.10756]
[1769841485969,0.06822035,83775.0,83754.0,0.119519]
[1769841486173,0.06822035,83773.0,83754.0,0.119519]
[1769841491069,0.06822035,83773.0,83746.0,0.01196]
[1769841491275,0.06822035,83773.0,83746.0,0.11952]
[1769841491782,0.06822035,83773.0,83748.0,0.01196]
[1769841492974,0.06822035,83773.0,83751.0,0.011959]
[1769841495370,0.06822035,83773.0,83753.0,0.011959]
[1769841498984,0.06822035,83773.0,83748.0,0.11001034]
[1769841499189,0.06822035,83773.0,83757.0,0.011958]
[1769841499479,0.00012702,83774.0,83759.0,0.12196834]
[1769841499883,0.09291096,83774.0,83759.0,0.12196834]
[1769841503785,0.09291096,83774.0,83761.0,0.011958]
[1769841505775,0.09291096,83774.0,83759.0,0.11001034]
[1769841508783,0.09291096,83774.0,83758.0,0.011958]
[1769841510480,0.09291096,83774.0,83755.0,0.011959]
[1769841510686,0.09291096,83774.0,83752.0,0.11001034]
[1769841510886,0.09291096,83774.0,83755.0,0.011959]
[1769841512484,0.09291096,83774.0,83752.0,0.011959]
[1769841516987,0.09291096,83774.0,83748.0,0.01196]
[1769841517182,0.09291096,83774.0,83747.0,0.01196]
[1769841517382,0.10146475,83772.0,83747.0,0.01196]
[1769841518388,0.10146475,83772.0,83746.0,0.10756]
[1769841518389,0.10146475,83772.0,83750.0,0.011959]
[1769841521087,0.10146475,83772.0,83752.0,0.011959]
[1769841531296,0.10146475,83772.0,83755.0,0.011959]
[1769841534389,0.10146475,83772.0,83751.0,0.011959]
[1769841537596,0.1076,83771.0,83751.0,0.011959]
[1769841538100,0.10860678,83770.0,83751.0,0.011959]
[1769841543400,0.10860678,83770.0,83747.0,0.01196]
[1769841544195,0.10860678,83770.0,83749.0,0.011959]
[1769841547306,0.1076,83769.0,83749.0,0.011959]
[1769841547498,0.11433616,83768.0,83749.0,0.011959]
[1769841549901,0.11433616,83768.0,83749.0,0.12617989]
[1769841550206,0.11433616,83768.0,83757.0,0.011958]
[1769841550405,0.11433616,83768.0,83754.0,0.011959]
[1769841550605,0.11433616,83768.0,83752.0,0.11422089]
[1769841550908,0.11433616,83768.0,83751.0,0.011959]
[1769841552502,0.1076,83769.0,83754.0,0.11422089]
[1769841553810,0.22290691,83769.0,83754.0,0.11422089]
[1769841555605,0.11530691,83768.0,83747.0,0.01196]
[1769841558104,0.11530691,83768.0,83750.0,0.011959]
[1769841558304,0.11530691,83768.0,83750.0,0.12617989]
[1769841558505,0.11530691,83768.0,83750.0,0.011959]
[1769841567912,0.11530691,83768.0,83746.0,0.01196]
[1769841571715,0.11530691,83768.0,83748.0,0.01196]
[1769841572715,0.1076,83767.0,83750.0,0.011959]
[1769841573018,0.11530691,83766.0,83753.0,0.011959]
[1769841573717,0.1076,83767.0,83753.0,0.12617989]
[1769841574215,0.1076,83767.0,83750.0,0.20255833]
[1769841574216,0.1076,83767.0,83757.0,0.11422089]
[1769841574419,0.10750961,83767.0,83758.0,0.12617889]
[1769841575306,0.10750961,83767.0,83758.0,0.011958]
[1769841575511,0.10750961,83767.0,83758.0,0.11422089]
[1769841577213,0.10750961,83767.0,83758.0,0.11522089]
[1769841577819,0.10750961,83767.0,83758.0,0.11422089]
[1769841578125,0.10750961,83767.0,83758.0,0.11522089]
[1769841579120,0.12701487,83766.0,83751.0,0.23860339]
[1769841579314,0.12701487,83766.0,83747.0,0.23860339]
[1769841579520,0.12701487,83766.0,83744.0,0.23860339]
[1769841579720,0.12701487,83766.0,83745.0,0.23860339]
[1769841582123,0.12701487,83766.0,83742.0,0.23860339]
[1769841582322,0.12701487,83766.0,83741.0,0.23860339]
[1769841582523,0.12701487,83766.0,83740.0,0.34620339]
[1769841582714,0.12701487,83766.0,83740.0,0.47082281]
[1769841583223,0.12701487,83766.0,83740.0,0.1076]
[1769841584526,0.12701487,83766.0,83741.0,0.011961]
[1769841586219,0.3234,83765.0,83741.0,0.011961]
[1769841588324,0.12701487,83764.0,83741.0,0.011961]
[1769841588527,0.12701487,83764.0,83744.0,0.01196]
[1769841598936,0.12701487,83764.0,83741.0,0.011961]
[1769841603746,0.12701487,83764.0,83743.0,0.01196]
[1769841603941,0.12701487,83764.0,83745.0,0.01196]
[1769841604359,0.12701487,83764.0,83750.0,0.011959]
[1769841604738,0.12701487,83764.0,83747.0,0.01196]
[1769841605445,0.12701487,83764.0,83744.0,0.01196]
[1769841606148,0.12701487,83764.0,83744.0,0.13657942]
[1769841609543,0.3234,83765.0,83748.0,0.11946349]
[1769841609744,0.3234,83765.0,83753.0,0.11946349]
[1769841610444,0.12492713,83769.0,83753.0,0.11946349]
[1769841610651,0.4364,83768.0,83753.0,0.11946349]
[1769841614854,0.56132713,83768.0,83753.0,0.11946349]
[1769841615048,0.12492713,83767.0,83753.0,0.11946349]
[1769841615354,0.12492713,83767.0,83749.0,0.13142349]
[1769841615555,0.12492713,83767.0,83743.0,0.23860339]
[1769841615752,0.12492713,83762.0,83734.0,0.60184469]
[1769841615949,0.12492713,83760.0,83733.0,0.23860339]
[1769841616149,0.12492713,83760.0,83732.0,0.37002888]
[1769841617457,0.12492713,83760.0,83735.0,0.119562]
[1769841620660,0.12492713,83760.0,83735.0,0.1076]
[1769841621454,0.12492713,83753.0,83722.0,0.23860339]
[1769841621654,0.12492713,83751.0,83721.0,0.11946349]
[1769841622560,0.12492713,83751.0,83726.0,0.011963]
[1769841625564,0.12492713,83751.0,83723.0,0.011963]
[1769841625964,0.13688613,83751.0,83723.0,0.011963]
[1769841632173,0.12492713,83745.0,83719.0,0.011964]
[1769841632472,0.12492713,83733.0,83710.0,0.119565]
[1769841632673,0.12492713,83731.0,83710.0,0.119565]
[1769841632873,0.12492713,83729.0,83710.0,0.119565]
[1769841634271,0.1076,83730.0,83695.0,0.11946349]
[1769841634272,0.12492713,83727.0,83695.0,0.11946349]
[1769841634675,0.13689013,83727.0,83699.0,0.011967]
[1769841634975,0.12492713,83727.0,83699.0,0.011967]
[1769841636377,0.1076,83730.0,83718.0,0.11946349]
[1769841637371,0.00011519,83729.0,83714.0,0.126768]
[1769841644982,0.00011519,83729.0,83704.0,0.06614187]
[1769841644983,0.00011519,83729.0,83721.0,0.12930132]
[1769841645374,0.10775519,83729.0,83721.0,0.12930132]
[1769841650080,0.10775519,83729.0,83719.0,0.011964]
[1769841650281,0.10775519,83729.0,83717.0,0.12930132]
[1769841660291,0.10775519,83729.0,83717.0,0.14126532]
[1769841664385,0.33372,83737.0,83721.0,0.12930132]
[1769841664585,0.10764,83732.0,83721.0,0.12930132]
[1769841666499,0.12817657,83731.0,83713.0,0.011965]
[1769841666800,0.12817657,83731.0,83712.0,0.12930132]
[1769841669104,0.10764,83732.0,83708.0,0.23860339]
[1769841669105,0.10764,83732.0,83714.0,0.1217701]
[1769841669297,0.43056,83753.0,83708.0,0.23860339]
[1769841669298,0.12451083,83757.0,83727.0,0.011963]
[1769841669501,0.22401862,83756.0,83732.0,0.1217701]
[1769841669705,0.10764,83756.0,83738.0,0.011961]
[1769841669896,0.31496,83755.0,83739.0,0.1217701]
[1769841671695,0.31496,83755.0,83731.0,0.1217701]
[1769841672003,0.10764,83756.0,83740.0,0.1217701]
[1769841672197,0.4226,83756.0,83740.0,0.1217701]
[1769841680304,0.4226,83756.0,83747.0,0.1217701]
[1769841681107,0.1076,83766.0,83749.0,0.1217701]
[1769841681308,0.33812,83765.0,83749.0,0.1217701]
[1769841681810,0.1066,83766.0,83756.0,0.1217701]
[1769841686902,0.12451083,83773.0,83756.0,0.1217701]
[1769841688011,0.23211083,83773.0,83756.0,0.1217701]
[1769841688710,0.12451083,83772.0,83756.0,0.1217701]
[1769841690305,0.1076,83773.0,83765.0,0.1217701]
[1769841690504,0.1076,83773.0,83767.0,0.1217701]
[1769841691203,0.33872,83781.0,83767.0,0.1217701]
[1769841691402,0.33872,83781.0,83769.0,0.1217701]
[1769841691809,0.12451083,83780.0,83764.0,0.1217701]
[1769841693110,0.12451083,83780.0,83767.0,0.001]
[1769841693810,0.12451083,83778.0,83751.0,0.011959]
[1769841694017,0.12451083,83778.0,83752.0,0.1076]
[1769841694616,0.12451083,83769.0,83747.0,0.01196]
[1769841694817,0.12451083,83767.0,83747.0,0.01196]
[1769841695907,0.12451083,83767.0,83744.0,0.01196]
[1769841696626,0.12451083,83767.0,83747.0,0.01196]
[1769841697415,0.12451083,83767.0,83747.0,0.13884019]
[1769841705624,0.12451083,83767.0,83747.0,0.12688019]
[1769841707831,0.12451083,83767.0,83749.0,0.13607845]
[1769841708128,0.12451083,83767.0,83751.0,0.13607845]
[1769841709530,0.13216392,83776.0,83758.0,0.13607845]
[1769841709718,0.13216392,83776.0,83760.0,0.13607845]
[1769841710833,1.18648014,83930.0,83764.0,0.13607845]
[1769841710834,0.44566943,83775.0,83764.0,0.13607845]
[1769841711031,0.33806943,83775.0,83764.0,0.13607845]
[1769841712233,0.33806943,83775.0,83760.0,0.13607845]
[1769841712432,0.13216392,83774.0,83756.0,0.14803745]
[1769841714731,0.13216392,83774.0,83752.0,0.011959]
[1769841714932,0.13216392,83774.0,83751.0,0.1076]
[1769841717237,0.13216392,83774.0,83750.0,0.011959]
[1769841718936,0.13216392,83774.0,83750.0,0.14803745]
[1769841719141,0.13216392,83774.0,83753.0,0.14803745]
[1769841719633,0.33806943,83775.0,83762.0,0.13607845]
[1769841719938,0.33806943,83775.0,83750.0,0.2026433]
[1769841719939,0.33806943,83775.0,83764.0,0.13607845]
[1769841725641,0.1076,83777.0,83766.0,0.13607845]
[1769841725941,0.1076,83777.0,83768.0,0.13607845]
[1769841727142,0.1076,83777.0,83769.0,0.14830106]
[1769841727942,0.34548,83781.0,83769.0,0.14830106]
[1769841729240,0.34548,83781.0,83760.0,0.2026433]
[1769841729241,0.34576,83790.0,83775.0,0.13634406]
[1769841729439,0.34576,83789.0,83775.0,0.13634406]
[1769841732142,0.34576,83789.0,83776.0,0.14830006]
[1769841732348,0.34576,83789.0,83779.0,0.13634406]
[1769841732849,0.34576,83789.0,83780.0,0.13634406]
[1769841733150,0.10756,83791.0,83780.0,0.13634406]
[1769841733851,0.13576258,83801.0,83782.0,0.13634406]
[1769841734051,0.01195,83817.0,83782.0,0.13634406]
[1769841734052,0.13576258,83799.0,83782.0,0.13634406]
[1769841734259,0.42236,83798.0,83783.0,0.011955]
[1769841736862,0.55812258,83798.0,83783.0,0.011955]
[1769841738162,0.13576258,83797.0,83783.0,0.011955]
[1769841742564,0.13576258,83797.0,83777.0,0.011956]
[1769841742864,0.13576258,83797.0,83774.0,0.19071516]
[1769841743365,0.13576258,83797.0,83774.0,0.17875916]
[1769841743567,0.13576258,83797.0,83770.0,0.011957]
[1769841744962,0.13576258,83797.0,83770.0,0.19071616]
[1769841746754,0.13576258,83797.0,83770.0,0.011957]
[1769841746960,0.13576258,83793.0,83763.0,0.17875916]
[1769841747465,0.13576258,83789.0,83762.0,0.17875916]
[1769841747655,0.13576258,83787.0,83763.0,0.011958]
[1769841747858,0.13576258,83785.0,83763.0,0.011958]
[1769841751169,0.13576258,83785.0,83766.0,0.011957]
[1769841751480,0.13576258,83785.0,83767.0,0.011957]
[1769841752078,0.45776,83784.0,83771.0,0.13634406]
[1769841752270,0.13576258,83790.0,83766.0,0.17875916]
[1769841752271,0.45776,83783.0,83772.0,0.14830006]
[1769841753574,0.35056,83785.0,83772.0,0.13634406]
[1769841757175,0.13576258,83787.0,83772.0,0.13634406]
[1769841757681,0.35156,83786.0,83772.0,0.13634406]
[1769841759678,0.49463472,83786.0,83772.0,0.13634406]
[1769841759878,0.49463472,83786.0,83768.0,0.011957]
[1769841759879,0.14307472,83785.0,83768.0,0.011957]
[1769841761479,0.14307472,83785.0,83768.0,0.1608181]
[1769841764981,0.14307472,83785.0,83768.0,0.33957726]
[1769841769486,0.14307472,83785.0,83769.0,0.17875916]
[1769841770283,0.14307472,83785.0,83768.0,0.33957726]
[1769841771284,0.14307472,83785.0,83769.0,0.17875916]
[1769841773394,0.14307472,83785.0,83770.0,0.17875916]
[1769841776488,0.14307472,83785.0,83771.0,0.17875916]
[1769841781292,0.14307472,83785.0,83772.0,0.17875916]
[1769841785995,0.14307472,83785.0,83771.0,0.17875916]
[1769841794901,0.14307472,83785.0,83770.0,0.17875916]
[1769841804910,0.14307472,83785.0,83771.0,0.17875916]
[1769841830618,0.15540367,83780.0,83756.0,0.011959]
[1769841830918,0.15540367,83778.0,83758.0,0.011958]
[1769841831122,0.15540367,83776.0,83758.0,0.011958]
[1769841831318,0.10756,83775.0,83759.0,0.15043832]
[1769841831521,0.10756,83775.0,83763.0,0.15043832]
[1769841831827,0.10756,83775.0,83766.0,0.15043832]
[1769841842937,0.10756,83775.0,83766.0,0.51854127]
[1769841843134,0.10756,83775.0,83767.0,0.15043832]
[1769841843329,0.10756,83786.0,83771.0,0.15043832]
[1769841843534,0.3732,83792.0,83781.0,0.15043832]
[1769841843731,0.3732,83792.0,83783.0,0.15043832]
[1769841849137,0.3732,83792.0,83784.0,0.51854127]
[1769841854042,0.3732,83792.0,83783.0,0.15043832]
[1769841854242,0.3732,83792.0,83784.0,0.51854127]
[1769841854945,0.3732,83792.0,83784.0,0.69270141]
[1769841859360,0.3732,83792.0,83784.0,0.17416014]
[1769841859558,0.10756,83796.0,83786.0,0.17416014]
[1769841859756,0.33752,83800.0,83786.0,0.17416014]
[1769841859962,0.33752,83800.0,83786.0,0.18611414]
[1769841860862,0.33752,83800.0,83786.0,0.17416014]
[1769841862664,0.33752,83800.0,83788.0,0.17416014]
[1769841869765,0.33752,83800.0,83787.0,0.41098127]
[1769841870166,0.33752,83800.0,83787.0,0.58514141]
[1769841880579,0.18270163,83799.0,83787.0,0.41098127]
[1769841881379,0.33752,83800.0,83787.0,0.41098127]
[1769841883080,0.33752,83800.0,83787.0,0.59642667]
[1769841889897,0.18270163,83803.0,83787.0,0.59642667]
[1769841892689,0.18270163,83803.0,83788.0,0.41098127]
[1769841893893,0.18270163,83803.0,83788.0,0.59642667]
[1769841896194,0.38472,83805.0,83789.0,0.1854454]
[1769841896494,0.11634391,83804.0,83789.0,0.1854454]
[1769841896693,0.38472,83805.0,83789.0,0.1854454]
[1769841896997,0.11634392,83804.0,83795.0,0.1854454]
[1769841897186,0.10756,83807.0,83798.0,0.011953]
[1769841897496,0.10756,83807.0,83800.0,0.011952]
[1769841897687,0.10756,83807.0,83797.0,0.011953]
[1769841900489,0.18270163,83820.0,83804.0,0.1854454]
[1769841900994,0.18270163,83818.0,83799.0,0.1973974]
[1769841901197,0.18270163,83816.0,83800.0,0.1854454]
[1769841901595,0.38652,83817.0,83804.0,0.1854454]
[1769841901993,0.38652,83817.0,83805.0,0.59642667]
[1769841902193,0.10756,83819.0,83806.0,0.1854454]
[1769841902391,0.18270163,83836.0,83806.0,0.1973964]
[1769841902595,0.18270163,83836.0,83805.0,0.41098127]
[1769841902596,0.18270163,83835.0,83810.0,0.1854454]
[1769841902895,0.18270163,83835.0,83812.0,0.1854454]
[1769841903100,0.18270163,83835.0,83814.0,0.1854454]
[1769841904099,0.18270163,83835.0,83814.0,0.1973954]
[1769841908500,0.18270163,83835.0,83818.0,0.20116214]
[1769841908903,0.18598281,83840.0,83820.0,0.18921214]
[1769841909204,0.18598281,83840.0,83822.0,0.18921214]
[1769841909394,0.18598281,83840.0,83824.0,0.18921214]
[1769841910701,0.18598281,83857.0,83830.0,0.011948]
[1769841910902,0.18598281,83856.0,83828.0,0.011948]
[1769841911204,0.18598281,83856.0,83831.0,0.011948]
[1769841911502,0.18598281,83856.0,83830.0,0.011948]
[1769841915207,0.18598281,83854.0,83829.0,0.41098127]
[1769841916808,0.18598281,83843.0,83818.0,0.10752]
[1769841917011,0.18598281,83841.0,83819.0,0.00057903]
[1769841918513,0.18598281,83841.0,83819.0,0.01252903]
[1769841922517,0.18598281,83841.0,83819.0,0.01195]
[1769841922718,0.18598281,83841.0,83820.0,0.00057903]
[1769841930817,0.49604,83842.0,83825.0,0.20116114]
[1769841931318,0.68202281,83842.0,83826.0,0.18979117]
[1769841931516,0.18598281,83841.0,83826.0,0.18979117]
[1769841932524,0.18598281,83841.0,83826.0,0.00057903]
[1769841942424,0.18598281,83841.0,83826.0,0.01252803]
[1769841942624,0.18598281,83841.0,83826.0,0.23994735]
[1769841945629,0.18598281,83841.0,83828.0,0.011948]
[1769841945926,0.49604,83842.0,83828.0,0.23936732]
[1769841946125,0.49604,83842.0,83830.0,0.011948]
[1769841946324,0.10752,83842.0,83831.0,0.22741932]
[1769841946523,0.10752,83842.0,83833.0,0.22741932]
[1769841947524,0.3962,83847.0,83833.0,0.22741932]
[1769841948023,0.3962,83847.0,83834.0,0.011947]
[1769841948218,0.3962,83847.0,83835.0,0.00057903]
[1769841949325,0.3962,83847.0,83836.0,0.011947]
[1769841950333,0.3962,83847.0,83835.0,0.00057903]
[1769841950531,0.62684989,83847.0,83835.0,0.00057903]
[1769841952536,0.62684989,83847.0,83833.0,0.23936732]
[1769841952733,0.62684989,83847.0,83834.0,0.00057903]
[1769841957641,0.3962,83847.0,83834.0,0.00057903]
[1769841957841,0.3962,83847.0,83834.0,0.22799835]
[1769841958648,0.63044989,83851.0,83834.0,0.22799835]
[1769841958940,0.63044989,83851.0,83835.0,0.23936632]
[1769841960941,0.23064989,83850.0,83835.0,0.23936632]
[1769841962450,0.3998,83851.0,83838.0,0.011947]
[1769841962749,0.23064989,83863.0,83842.0,0.011946]
[1769841962948,0.23064989,83860.0,83842.0,0.011946]
[1769841963246,0.23064989,83860.0,83843.0,0.00057903]
[1769841963935,0.23064989,83860.0,74520.0,0.025301]
[1769841963936,0.23064989,83859.0,83831.0,0.011948]
[1769841967238,0.23064989,83859.0,83833.0,0.011948]
[1769841971148,0.23064989,83859.0,83835.0,0.011947]
[1769841974351,0.24894318,83857.0,83835.0,0.011947]
[1769841989766,0.24894318,83857.0,83829.0,0.23847143]
[1769841989969,0.24894318,83849.0,83819.0,0.23847143]
[1769841990163,0.24894318,83847.0,83819.0,0.01195]
[1769841990357,0.57357365,83848.0,83819.0,0.01195]
[1769841990358,0.24894318,83845.0,83819.0,0.01195]
[1769842000078,0.24262922,83842.0,83815.0,0.01195]
[1769842000278,0.24262922,83840.0,83814.0,0.01195]
[1769842001379,0.24262922,83840.0,83817.0,0.01195]
[1769842005581,0.24262922,83840.0,83817.0,0.23737391]
[1769842005779,0.24262922,83840.0,83822.0,0.24932291]
[1769842006280,0.011944,83861.0,83832.0,0.011948]
[1769842006489,0.10748,83860.0,83837.0,0.23737391]
[1769842006688,0.011943,83869.0,83837.0,0.23737391]
[1769842006689,0.10748,83859.0,83837.0,0.23737391]
[1769842007695,0.10748,83859.0,83840.0,0.011947]
[1769842008384,0.24262922,83858.0,83840.0,0.011947]
[1769842008996,0.24262922,83858.0,83840.0,0.24932091]
[1769842009189,0.24262922,83858.0,83842.0,0.24931991]
[1769842011191,0.24262922,83858.0,83842.0,0.011946]
[1769842012595,0.24262922,83858.0,83842.0,0.24931991]
[1769842014690,0.24262922,83858.0,83842.0,0.011946]
[1769842019698,0.24262922,83858.0,83843.0,0.23737391]
[1769842019890,0.24262922,83858.0,83844.0,0.011946]
[1769842022806,0.24262922,83858.0,83846.0,0.011946]
[1769842023099,0.10748,83859.0,83849.0,0.011945]
[1769842024504,0.10748,83859.0,83849.0,0.24931891]
[1769842026300,0.10748,83859.0,83852.0,0.011945]
[1769842027702,0.10748,83859.0,83849.0,0.24931891]
[1769842028101,0.10748,83859.0,83852.0,0.26384589]
[1769842029603,0.41296,83867.0,83854.0,0.011945]
[1769842030002,0.66107741,83867.0,83854.0,0.011945]
[1769842032905,0.24811741,83866.0,83854.0,0.011945]
[1769842039811,0.24811741,83866.0,83847.0,0.25190089]
[1769842039812,0.41296,83867.0,83852.0,0.25190089]
[1769842040017,0.10748,83888.0,83866.0,0.011943]
[1769842040210,0.24811741,83886.0,83866.0,0.011943]
[1769842042012,0.24811741,83886.0,83869.0,0.011942]
[1769842053644,0.24811741,83879.0,83855.0,0.23847143]
[1769842053938,0.24811741,83877.0,83851.0,0.011945]
[1769842054338,0.24811741,83877.0,83854.0,0.011945]
[1769842059137,0.24811741,83877.0,83851.0,0.011945]
[1769842059541,0.24811741,83877.0,83845.0,0.06492058]
[1769842059542,0.26234306,83869.0,83845.0,0.10744]
[1769842059842,0.26234306,83867.0,83845.0,0.10744]
[1769842060939,0.26234306,83867.0,83839.0,0.011947]
[1769842061533,0.26234306,83867.0,83837.0,0.10744]
[1769842061534,0.26234306,83859.0,83835.0,0.25041843]
[1769842061741,0.26234306,83857.0,83831.0,0.011948]
[1769842065148,0.26234306,83857.0,83833.0,0.28050677]
[1769842068045,0.26234306,83857.0,83833.0,0.011948]
[1769842068443,0.26234306,83857.0,83836.0,0.011947]
[1769842068638,0.26234306,83857.0,83836.0,0.28050577]
[1769842071146,0.26234306,83857.0,83836.0,0.011947]
[1769842081746,0.10748,83856.0,83836.0,0.011947]
[1769842082248,0.26234306,83855.0,83836.0,0.011947]
[1769842088559,0.26234306,83855.0,83833.0,0.011948]
[1769842088953,0.2636248,83849.0,83830.0,0.10748]
[1769842089266,0.2636248,83847.0,83830.0,0.10748]
[1769842089851,0.2636248,83845.0,83830.0,0.10748]
[1769842090358,0.2636248,83845.0,83830.0,0.119428]
[1769842100863,0.2636248,83845.0,83824.0,0.23847143]
[1769842101166,0.2636248,83845.0,83823.0,0.23847143]
[1769842102067,0.2636248,83845.0,83824.0,0.011949]
[1769842121480,0.2636248,83845.0,83822.0,0.23847143]
[1769842121675,0.2636248,83845.0,83821.0,0.25042043]
[1769842122472,0.2636248,83845.0,83807.0,0.10748]
[1769842122677,0.27809539,83830.0,83808.0,0.29768877]
[1769842122981,0.26614739,83828.0,83801.0,0.10748]
[1769842123274,0.011945,83852.0,83801.0,0.10748]
[1769842123275,0.26614739,83826.0,83801.0,0.39973606]
[1769842123482,0.26614739,83824.0,83801.0,0.39973606]
[1769842124984,0.26614739,83824.0,83802.0,0.28030406]
[1769842126170,0.26614739,83824.0,83803.0,0.011952]
[1769842126375,0.26614739,83824.0,83801.0,0.10748]
[1769842127181,0.26614739,83824.0,83801.0,0.38778406]
[1769842128486,0.26614739,83824.0,83802.0,0.28030406]
[1769842132182,0.26614739,83824.0,83803.0,0.011952]